fUSD/lending_fUSD_20260513
["ID","MTS","AMOUNT","RATE_DAILY","PERIOD"]
[422166294,1778641852000,-333.861651,0.000402,30]
[422166265,1778641852000,-330.14,0.00040043,120]
[422166293,1778641852000,-465.298313,0.000402,30]
[422166286,1778641852000,-151.0,0.000402,30]
[422166285,1778641852000,-151.0,0.000402,30]
[422166279,1778641852000,-1091.287909,0.000402,7]
[422166263,1778641852000,-10000.0,0.0004,41]
[422166258,1778641852000,-610.37805399,0.0004,2]
[422166266,1778641852000,-152.0,0.00040045,7]
[422166243,1778641852000,-24140.66391029,0.0004,2]
[422166244,1778641852000,-396.44398711,0.0004,2]
[422166240,1778641852000,-393.87586637,0.0004,30]
[422166239,1778641852000,-24655.94070798,0.0004,5]
[422166241,1778641852000,-1925.3916693,0.0004,4]
[422166242,1778641852000,-383.76373632,0.0004,120]
[422166246,1778641852000,-4177.06213608,0.0004,2]
[422166247,1778641852000,-454.45236381,0.0004,120]
[422166250,1778641852000,-30544.4930499,0.0004,120]
[422166251,1778641852000,-213.79387096,0.0004,30]
[422166253,1778641852000,-319.64171493,0.0004,2]
[422166267,1778641852000,-4416.55036381,0.00040045,2]
[422166252,1778641852000,-202.89090682,0.0004,120]
[422166248,1778641852000,-332.07946852,0.0004,2]
[422166254,1778641852000,-164.01832159,0.0004,2]
[422166255,1778641852000,-10864.3720254,0.0004,2]
[422166256,1778641852000,-515.67909946,0.0004,2]
[422166289,1778641852000,-178.384317,0.000402,30]
[422166257,1778641852000,-202.03869547,0.0004,30]
[422166260,1778641852000,-200.0,0.0004,7]
[422166261,1778641852000,-514.81254316,0.0004,5]
[422166259,1778641852000,-245.77571807,0.0004,120]
[422166262,1778641852000,-3020.46243805,0.0004,120]
[422166264,1778641852000,-150.0,0.00040003,2]
[422166249,1778641852000,-150.49641255,0.0004,120]
[422166292,1778641852000,-333.861651,0.000402,30]
[422166300,1778641852000,-1214.457842,0.000402,28]
[422166291,1778641852000,-178.384317,0.000402,30]
[422166322,1778641852000,-500.0,0.00040283,7]
[422166328,1778641852000,-500.0,0.00040283,7]
[422166325,1778641852000,-500.0,0.00040283,7]
[422166329,1778641852000,-517.89,0.00040283,7]
[422166324,1778641852000,-500.0,0.00040283,7]
[422166326,1778641852000,-500.0,0.00040283,7]
[422166327,1778641852000,-500.0,0.00040283,7]
[422166332,1778641852000,-2212.09,0.0004029,60]
[422166340,1778641852000,-1000.0,0.00040345,90]
[422166342,1778641852000,-518.15585916,0.00040355,60]
[422166331,1778641852000,-434.49,0.0004029,60]
[422166341,1778641852000,-40394.0,0.00040347,120]
[422166333,1778641852000,-5895.23,0.0004029,60]
[422166334,1778641852000,-152.0,0.00040294,6]
[422166338,1778641852000,-1000.0,0.00040325,90]
[422166335,1778641852000,-2374.0,0.000403,11]
[422166337,1778641852000,-66061.66,0.000403,2]
[422166336,1778641852000,-91549.66871755,0.000403,120]
[422166339,1778641852000,-330.14,0.00040343,120]
[422166343,1778641852000,-500.0,0.00040355,60]
[422166344,1778641852000,-501.01992632,0.0004042,30]
[422166345,1778641852000,-330.14,0.00040443,120]
[422166245,1778641852000,-1586.11003081,0.0004,2]
[422166323,1778641852000,-500.0,0.00040283,7]
[422166321,1778641852000,-500.0,0.00040283,7]
[422166330,1778641852000,-1574.93,0.0004029,60]
[422166319,1778641852000,-500.0,0.00040283,7]
[422166288,1778641852000,-178.384317,0.000402,30]
[422166290,1778641852000,-178.384317,0.000402,30]
[422166297,1778641852000,-465.298313,0.000402,30]
[422166305,1778641852000,-158.60995306,0.0004024,120]
[422166304,1778641852000,-151.0,0.000402,14]
[422166298,1778641852000,-333.861651,0.000402,30]
[422166306,1778641852000,-330.14,0.00040243,120]
[422166299,1778641852000,-465.298313,0.000402,30]
[422166296,1778641852000,-333.861651,0.000402,30]
[422166302,1778641852000,-1214.457842,0.000402,28]
[422166303,1778641852000,-1214.457842,0.000402,28]
[422166295,1778641852000,-465.298313,0.000402,30]
[422166301,1778641852000,-1214.457842,0.000402,28]
[422166318,1778641852000,-500.0,0.00040283,7]
[422166309,1778641852000,-55423.2220087,0.00040261,2]
[422166307,1778641852000,-4067.87657853,0.00040258,12]
[422166310,1778641852000,-500.0,0.00040283,7]
[422166315,1778641852000,-500.0,0.00040283,7]
[422166314,1778641852000,-500.0,0.00040283,7]
[422166317,1778641852000,-500.0,0.00040283,7]
[422166311,1778641852000,-500.0,0.00040283,7]
[422166316,1778641852000,-500.0,0.00040283,7]
[422166312,1778641852000,-500.0,0.00040283,7]
[422166320,1778641852000,-500.0,0.00040283,7]
[422166308,1778641852000,-40404.0,0.0004026,120]
[422166313,1778641852000,-500.0,0.00040283,7]
[422166439,1778641853000,-261.98000005,0.0004095,60]
[422166436,1778641853000,-164.92554873,0.00033634,30]
[422166376,1778641853000,-417.0,0.00040695,2]
[422166373,1778641853000,-330.14,0.00040643,120]
[422166367,1778641853000,-1000.0,0.00040565,90]
[422166371,1778641853000,-2283.94,0.000406,14]
[422166372,1778641853000,-1500.0,0.000406,35]
[422166377,1778641853000,-40394.0,0.00040696,120]
[422166375,1778641853000,-360.92838941,0.00040685,120]
[422166374,1778641853000,-350.0,0.00040657,9]
[422166389,1778641853000,-36077.35781674,0.000408,2]
[422166379,1778641853000,-330.14,0.00040743,120]
[422166378,1778641853000,-1000.0,0.00040716,90]
[422166384,1778641853000,-175.45,0.0004075,120]
[422166382,1778641853000,-394.41,0.00040743,8]
[422166388,1778641853000,-1000.0,0.00040774,90]
[422166380,1778641853000,-386.57,0.00040743,8]
[422166383,1778641853000,-174.54,0.0004075,120]
[422166381,1778641853000,-75792.01,0.00040743,8]
[422166385,1778641853000,-346.04884219,0.0004075,120]
[422166387,1778641853000,-1000.0,0.00040773,90]
[422166370,1778641853000,-1000.0,0.00040586,90]
[422166368,1778641853000,-1142.31653078,0.00040575,120]
[422166369,1778641853000,-1000.0,0.00040581,90]
[422166366,1778641853000,-330.14,0.00040543,120]
[422166438,1778641853000,-681.76212011,0.0004095,60]
[422166346,1778641853000,-1000.0,0.00040449,90]
[422166354,1778641853000,-1484.38230829,0.000405,30]
[422166347,1778641853000,-1584.0,0.00040466,11]
[422166352,1778641853000,-11387.06741089,0.000405,120]
[422166348,1778641853000,-1000.0,0.00040493,90]
[422166350,1778641853000,-152.0,0.000405,120]
[422166351,1778641853000,-1117.03,0.000405,120]
[422166353,1778641853000,-153.21980407,0.000405,120]
[422166386,1778641853000,-350.0,0.00040754,10]
[422166365,1778641853000,-1353.0,0.00040536,2]
[422166355,1778641853000,-66061.66,0.000405,2]
[422166361,1778641853000,-227.602348,0.00040522,30]
[422166357,1778641853000,-184.14,0.00040522,30]
[422166363,1778641853000,-227.602348,0.00040522,30]
[422166358,1778641853000,-40394.0,0.00040522,120]
[422166359,1778641853000,-151.611104,0.00040522,30]
[422166356,1778641853000,-1000.0,0.00040504,90]
[422166364,1778641853000,-1816.11,0.00040522,120]
[422166362,1778641853000,-227.602348,0.00040522,30]
[422166360,1778641853000,-227.602348,0.00040522,30]
[422166390,1778641853000,-154.0,0.00032634,30]
[422166349,1778641853000,-1000.0,0.00040496,90]
[422166392,1778641853000,-188.79673104,0.00037143,2]
[422166416,1778641853000,-361.804076,0.00040871,30]
[422166419,1778641853000,-151.0,0.00040871,30]
[422166418,1778641853000,-151.0,0.00040871,30]
[422166422,1778641853000,-368.67491745,0.0004088,30]
[422166420,1778641853000,-151.0,0.00040871,30]
[422166421,1778641853000,-151.0,0.00040871,30]
[422166428,1778641853000,-200.0,0.000409,17]
[422166424,1778641853000,-237.41,0.00040899,120]
[422166423,1778641853000,-4711.6215449,0.0004088,2]
[422166426,1778641853000,-393.16,0.00040899,120]
[422166425,1778641853000,-275.55,0.00040899,120]
[422166430,1778641853000,-246.98,0.00040902,120]
[422166429,1778641853000,-403.4,0.00040902,120]
[422166432,1778641853000,-330.14,0.00040943,120]
[422166434,1778641853000,-1410.58,0.00027037,2]
[422166431,1778641853000,-1000.0,0.00040904,90]
[422166433,1778641853000,-43980.45656196,0.0004095,60]
[422166437,1778641853000,-35244.81921049,0.0004095,60]
[422166435,1778641853000,-3904.52,0.0004095,60]
[422166415,1778641853000,-361.804076,0.00040871,30]
[422166410,1778641853000,-151.0,0.00040871,30]
[422166427,1778641853000,-58562.34360392,0.000409,120]
[422166407,1778641853000,-214.18,0.00040868,120]
[422166395,1778641853000,-169.670341,0.00039824,30]
[422166413,1778641853000,-301.315249,0.00040871,30]
[422166394,1778641853000,-300.0,0.00037143,2]
[422166393,1778641853000,-111.66465777,0.00037143,2]
[422166399,1778641853000,-27769.09875563,0.000408,60]
[422166397,1778641853000,-769.89099571,0.000408,2]
[422166401,1778641853000,-1000.0,0.00040819,90]
[422166402,1778641853000,-330.14,0.00040843,120]
[422166400,1778641853000,-5105.95528025,0.000408,120]
[422166403,1778641853000,-1816.11,0.00040848,120]
[422166396,1778641853000,-1292.56242187,0.000408,2]
[422166398,1778641853000,-27921.84876568,0.000408,2]
[422166404,1778641853000,-300.0,0.00040849,120]
[422166409,1778641853000,-151.0,0.00040871,30]
[422166408,1778641853000,-40410.0,0.00040871,120]
[422166414,1778641853000,-361.804076,0.00040871,30]
[422166406,1778641853000,-670.29,0.00040868,120]
[422166391,1778641853000,-151.0,0.0003458,7]
[422166411,1778641853000,-151.0,0.00040871,30]
[422166417,1778641853000,-361.804076,0.00040871,30]
[422166405,1778641853000,-500.0,0.00040854,10]
[422166412,1778641853000,-151.0,0.00040871,30]
[422166440,1778641854000,-666.0,0.00014838,3]
[422166446,1778641918000,222.38,0.00026904,120]
[422166452,1778641982000,-160.0,0.00012792,2]
[422166453,1778641982000,-625.08657863,0.00012792,2]
[422166451,1778641982000,-214.91342137,0.00012792,2]
[422166454,1778641983000,-1000.0,0.00012792,2]
[422166455,1778641984000,-1000.0,0.00012792,2]
[422166456,1778641985000,-1000.0,0.00012792,2]
[422166457,1778641986000,-1000.0,0.00012792,2]
[422166458,1778641987000,-1000.0,0.00012792,2]
[422166459,1778641988000,-1000.0,0.00012792,2]
[422166460,1778641989000,-1000.0,0.00012792,2]
[422166461,1778641990000,-1000.0,0.00012792,2]
[422166462,1778641991000,-1000.0,0.00012792,2]
[422166463,1778641992000,-1000.0,0.00012792,2]
[422166464,1778641993000,-1000.0,0.00012792,2]
[422166465,1778641994000,-1000.0,0.00012792,2]
[422166466,1778641995000,-1000.0,0.00012792,2]
[422166467,1778641996000,-1000.0,0.00012792,2]
[422166468,1778642030000,-636.0,0.00012792,2]
[422166470,1778642138000,214.86924866,0.00027397,120]
[422166476,1778642431000,313.873396,0.00024985,120]
[422166477,1778642449000,297.990029,0.00024985,120]
[422166478,1778642466000,731.180994,0.00024985,120]
[422166481,1778642705000,161.64,8.329e-05,2]
[422166482,1778642735000,162.82,0.00027397,120]
[422166484,1778642764000,162.82,0.00027397,120]
[422166485,1778642810000,-220.88579769,0.000125,2]
[422166486,1778642868000,366.958179,0.00022045,120]
[422166529,1778643032000,-697.0,0.00013561,2]
[422166528,1778643032000,-697.0,0.00013561,2]
[422166533,1778643032000,-697.0,0.00013561,2]
[422166527,1778643032000,-501.65246601,0.00013561,2]
[422166524,1778643032000,-697.0,0.00013561,2]
[422166525,1778643032000,-500.0,0.00013561,2]
[422166523,1778643032000,-166.47367607,0.00013561,2]
[422166530,1778643032000,-697.0,0.00013561,2]
[422166522,1778643032000,-500.0,0.00013561,2]
[422166526,1778643032000,-697.0,0.00013561,2]
[422166532,1778643032000,-697.0,0.00013561,2]
[422166537,1778643032000,-697.0,0.00013561,2]
[422166534,1778643032000,-697.0,0.00013561,2]
[422166536,1778643032000,-697.0,0.00013561,2]
[422166517,1778643032000,-150.0,0.00013561,2]
[422166535,1778643032000,-697.0,0.00013561,2]
[422166540,1778643032000,-712.90323256,0.00013561,2]
[422166538,1778643032000,-697.0,0.00013561,2]
[422166541,1778643032000,-172.70139994,0.00013561,2]
[422166542,1778643032000,-500.0,0.00013561,2]
[422166545,1778643032000,-500.0,0.00013561,2]
[422166546,1778643032000,-500.0,0.00013561,2]
[422166543,1778643032000,-500.0,0.00013561,2]
[422166544,1778643032000,-500.0,0.00013561,2]
[422166531,1778643032000,-697.0,0.00013561,2]
[422166521,1778643032000,-697.0,0.00013561,2]
[422166516,1778643032000,-500.0,0.00013561,2]
[422166520,1778643032000,-150.0,0.00013561,2]
[422166549,1778643032000,-500.0,0.00013561,2]
[422166494,1778643032000,-11.66420231,0.000125,2]
[422166495,1778643032000,-300.0,0.00012691,2]
[422166497,1778643032000,-1049.47104239,0.00012691,2]
[422166496,1778643032000,-150.52895761,0.00012691,2]
[422166498,1778643032000,-150.0,0.00012691,2]
[422166503,1778643032000,-75248.47865805,0.00012692,2]
[422166502,1778643032000,-3636.70979748,0.00012692,2]
[422166499,1778643032000,-13183.07262754,0.00012692,2]
[422166501,1778643032000,-1488.70773973,0.00012692,2]
[422166500,1778643032000,-375.1883772,0.00012692,2]
[422166518,1778643032000,-697.0,0.00013561,2]
[422166504,1778643032000,-165.37687395,0.00012791,2]
[422166507,1778643032000,-160.0,0.00012945,2]
[422166505,1778643032000,-787.53221972,0.00012791,2]
[422166509,1778643032000,-697.0,0.00013561,2]
[422166506,1778643032000,-214.91342137,0.00012945,2]
[422166510,1778643032000,-697.0,0.00013561,2]
[422166511,1778643032000,-697.0,0.00013561,2]
[422166515,1778643032000,-697.0,0.00013561,2]
[422166513,1778643032000,-697.0,0.00013561,2]
[422166514,1778643032000,-697.0,0.00013561,2]
[422166512,1778643032000,-697.0,0.00013561,2]
[422166519,1778643032000,-500.0,0.00013561,2]
[422166508,1778643032000,-2000.0,0.00013109,2]
[422166552,1778643032000,-640.23478117,0.00013561,2]
[422166539,1778643032000,-697.0,0.00013561,2]
[422166548,1778643032000,-500.0,0.00013561,2]
[422166579,1778643032000,-2500.0,0.00014738,2]
[422166584,1778643032000,-587.0,0.00015273,2]
[422166581,1778643032000,-191.98255793,0.000149,2]
[422166580,1778643032000,-24334.0,0.00014838,3]
[422166583,1778643032000,-1743.0,0.000152,2]
[422166582,1778643032000,-433.0,0.00015001,2]
[422166585,1778643032000,-9999.99,0.0001531,2]
[422166587,1778643032000,-5984.31,0.0001531,2]
[422166588,1778643032000,-4999.99,0.0001531,2]
[422166586,1778643032000,-150.99,0.0001531,2]
[422166589,1778643032000,-11379.07895413,0.0001531,2]
[422166573,1778643032000,-300.0,0.0001375,2]
[422166590,1778643032000,-1215.33104587,0.0001531,2]
[422166593,1778643032000,-591.96476394,0.00015503,2]
[422166592,1778643032000,-2351.0,0.00015356,2]
[422166594,1778643032000,-300.0,0.00016,2]
[422166595,1778643032000,-214.91342137,0.00016,3]
[422166596,1778643032000,-378.21736524,0.00016,2]
[422166602,1778643032000,-2145.60205188,0.00016328,2]
[422166597,1778643032000,-378.21736524,0.000161,2]
[422166599,1778643032000,-378.21736524,0.000162,2]
[422166600,1778643032000,-231.82,0.00016293,2]
[422166601,1778643032000,-736.0,0.00016295,2]
[422166603,1778643032000,-354.39794812,0.00016328,2]
[422166591,1778643032000,-7879.38,0.0001531,2]
[422166577,1778643032000,-250.0,0.00014,2]
[422166598,1778643032000,-583.71,0.00016114,2]
[422166576,1778643032000,-1680.0,0.0001396,2]
[422166578,1778643032000,-462.0422,0.00014738,2]
[422166551,1778643032000,-500.0,0.00013561,2]
[422166550,1778643032000,-500.0,0.00013561,2]
[422166553,1778643032000,-150.0,0.00013561,2]
[422166554,1778643032000,-256.84381833,0.00013561,2]
[422166555,1778643032000,-500.0,0.00013561,2]
[422166556,1778643032000,-500.0,0.00013561,2]
[422166557,1778643032000,-500.0,0.00013561,2]
[422166558,1778643032000,-500.0,0.00013561,2]
[422166604,1778643032000,-200.0,0.00016344,2]
[422166560,1778643032000,-386.09726532,0.00013561,2]
[422166561,1778643032000,-1568.25291956,0.00013598,2]
[422166559,1778643032000,-500.0,0.00013561,2]
[422166547,1778643032000,-326.42369351,0.00013561,2]
[422166564,1778643032000,-501.36855681,0.00013698,2]
[422166562,1778643032000,-500.0,0.00013698,2]
[422166575,1778643032000,-420.0,0.00013922,2]
[422166574,1778643032000,-255.0,0.00013795,2]
[422166570,1778643032000,-300.0,0.0001375,2]
[422166567,1778643032000,-610.37457712,0.0001375,2]
[422166571,1778643032000,-167.73312861,0.0001375,2]
[422166572,1778643032000,-300.0,0.0001375,2]
[422166568,1778643032000,-300.0,0.0001375,2]
[422166566,1778643032000,-1000.0,0.00013699,2]
[422166563,1778643032000,-500.0,0.00013698,2]
[422166565,1778643032000,-500.0,0.00013698,2]
[422166569,1778643032000,-300.0,0.0001375,2]
[422166625,1778643033000,-151.0,0.00016895,2]
[422166629,1778643033000,-166.66,0.00017004,2]
[422166630,1778643033000,-166.66,0.00017362,2]
[422166632,1778643033000,-570.38,0.00017634,2]
[422166634,1778643033000,-166.66,0.0001772,2]
[422166633,1778643033000,-1252.0,0.00017717,2]
[422166631,1778643033000,-9231.81,0.00017596,2]
[422166635,1778643033000,-2910.6,0.00017728,2]
[422166639,1778643033000,-165.08249546,0.00018,2]
[422166641,1778643033000,-166.66,0.00018078,2]
[422166640,1778643033000,-350.0,0.00018,2]
[422166638,1778643033000,-177.5,0.00017915,2]
[422166627,1778643033000,-151.0,0.00016895,2]
[422166637,1778643033000,-565.88,0.00017891,2]
[422166642,1778643033000,-165.08249546,0.000182,2]
[422166643,1778643033000,-2195.54,0.00018208,2]
[422166644,1778643033000,-231.82,0.00018329,2]
[422166636,1778643033000,-156.48177233,0.00017833,2]
[422166628,1778643033000,-151.0,0.00016895,2]
[422166618,1778643033000,-151.0,0.00016895,2]
[422166626,1778643033000,-151.0,0.00016895,2]
[422166645,1778643033000,-2000.0,0.00018334,2]
[422166605,1778643033000,-1568.25291956,0.00016517,2]
[422166607,1778643033000,-823.0,0.00016754,2]
[422166606,1778643033000,-184.57,0.00016712,2]
[422166608,1778643033000,-3292.0,0.00016892,2]
[422166610,1778643033000,-151.0,0.00016895,2]
[422166609,1778643033000,-151.0,0.00016895,2]
[422166612,1778643033000,-151.0,0.00016895,2]
[422166624,1778643033000,-151.0,0.00016895,2]
[422166614,1778643033000,-151.0,0.00016895,2]
[422166619,1778643033000,-151.0,0.00016895,2]
[422166615,1778643033000,-151.0,0.00016895,2]
[422166621,1778643033000,-151.0,0.00016895,2]
[422166617,1778643033000,-151.0,0.00016895,2]
[422166616,1778643033000,-151.0,0.00016895,2]
[422166620,1778643033000,-151.0,0.00016895,2]
[422166623,1778643033000,-151.0,0.00016895,2]
[422166622,1778643033000,-151.0,0.00016895,2]
[422166611,1778643033000,-151.0,0.00016895,2]
[422166613,1778643033000,-151.0,0.00016895,2]
[422166646,1778643033000,-1152.0,0.0001838,2]
[422166647,1778643033000,-165.08249546,0.000184,2]
[422166680,1778643033000,-2237.0,0.0002,5]
[422166685,1778643033000,-1613.0,0.00020163,2]
[422166687,1778643033000,-231.82,0.00020366,2]
[422166678,1778643033000,-157.0,0.0002,2]
[422166682,1778643033000,-406.0,0.0002,2]
[422166688,1778643033000,-6453.0,0.00020439,2]
[422166692,1778643033000,-623.354673,0.00020547,2]
[422166690,1778643033000,-726.27589738,0.00020448,2]
[422166676,1778643033000,-908.0,0.0002,2]
[422166694,1778643033000,-500.0,0.00020547,2]
[422166698,1778643033000,-4483.35993259,0.00020548,2]
[422166702,1778643033000,-500.91157275,0.00020548,2]
[422166701,1778643033000,-2338.90301271,0.00020548,2]
[422166703,1778643033000,-2052.62541454,0.00020548,2]
[422166704,1778643033000,-1254.53503941,0.00020548,2]
[422166700,1778643033000,-4892.44,0.00020548,2]
[422166705,1778643033000,-322.59321388,0.00020548,2]
[422166648,1778643033000,-166.66,0.00018436,2]
[422166696,1778643033000,-4892.44,0.00020548,2]
[422166674,1778643033000,-156.0,0.0002,2]
[422166699,1778643033000,-409.08006741,0.00020548,2]
[422166672,1778643033000,-400.0,0.0002,2]
[422166649,1778643033000,-750.0,0.00018565,2]
[422166670,1778643033000,-2412.0,0.0002,2]
[422166651,1778643033000,-4609.0,0.00018581,2]
[422166650,1778643033000,-150.0,0.00018565,7]
[422166653,1778643033000,-166.66,0.00018794,2]
[422166654,1778643033000,-177.5,0.0001891,2]
[422166652,1778643033000,-357.39352554,0.00018694,2]
[422166655,1778643033000,-570.38,0.00019004,2]
[422166658,1778643033000,-500.0,0.00019178,2]
[422166656,1778643033000,-1403.9508372,0.000191,4]
[422166660,1778643033000,-2129.0,0.00019265,2]
[422166659,1778643033000,-2039.84,0.00019178,2]
[422166662,1778643033000,-1568.25291956,0.00019436,2]
[422166664,1778643033000,-165.9,0.00019588,2]
[422166666,1778643033000,-301.97,0.00019777,2]
[422166668,1778643033000,-578.0,0.0002,2]
[422166669,1778643033000,-154.0,0.0002,2]
[422166657,1778643033000,-623.0,0.00019178,2]
[422166667,1778643033000,-177.5,0.00019906,2]
[422166756,1778643038000,-1603.8942595,0.00020548,2]
[422166753,1778643038000,-448.0,0.0002,2]
[422166754,1778643038000,-418.98263072,0.0002,2]
[422166751,1778643038000,-369.28474447,0.0002,2]
[422166750,1778643038000,-44.04292392,0.00018531,2]
[422166749,1778643038000,-455.95707608,0.00018531,2]
[422166747,1778643038000,-500.0,0.00018531,2]
[422166748,1778643038000,-500.0,0.00018531,2]
[422166755,1778643038000,-489.79544139,0.0002,2]
[422166742,1778643038000,-500.0,0.00018531,2]
[422166752,1778643038000,-903.93718342,0.0002,2]
[422166758,1778643038000,-1225.18403901,0.00020548,2]
[422166767,1778643038000,-4892.44,0.00020548,2]
[422166759,1778643038000,-4438.36956248,0.00020548,2]
[422166760,1778643038000,-454.07043752,0.00020548,2]
[422166761,1778643038000,-4892.44,0.00020548,2]
[422166762,1778643038000,-4892.44,0.00020548,2]
[422166764,1778643038000,-4892.44,0.00020548,2]
[422166763,1778643038000,-4892.44,0.00020548,2]
[422166766,1778643038000,-4892.44,0.00020548,2]
[422166765,1778643038000,-4892.44,0.00020548,2]
[422166777,1778643038000,-4892.44,0.00020548,2]
[422166768,1778643038000,-4892.44,0.00020548,2]
[422166779,1778643038000,-4892.44,0.00020548,2]
[422166746,1778643038000,-269.04889214,0.00018531,2]
[422166757,1778643038000,-486.2334482,0.00020548,2]
[422166745,1778643038000,-230.95110786,0.00018531,2]
[422166722,1778643038000,-500.0,0.00018531,2]
[422166743,1778643038000,-500.0,0.00018531,2]
[422166769,1778643038000,-4892.44,0.00020548,2]
[422166718,1778643038000,-500.0,0.00018531,2]
[422166721,1778643038000,-500.0,0.00018531,2]
[422166719,1778643038000,-500.0,0.00018531,2]
[422166720,1778643038000,-500.0,0.00018531,2]
[422166717,1778643038000,-500.0,0.00018531,2]
[422166723,1778643038000,-500.0,0.00018531,2]
[422166724,1778643038000,-500.0,0.00018531,2]
[422166725,1778643038000,-500.0,0.00018531,2]
[422166726,1778643038000,-500.0,0.00018531,2]
[422166728,1778643038000,-500.0,0.00018531,2]
[422166727,1778643038000,-500.0,0.00018531,2]
[422166730,1778643038000,-500.0,0.00018531,2]
[422166729,1778643038000,-500.0,0.00018531,2]
[422166731,1778643038000,-500.0,0.00018531,2]
[422166732,1778643038000,-500.0,0.00018531,2]
[422166733,1778643038000,-500.0,0.00018531,2]
[422166734,1778643038000,-500.0,0.00018531,2]
[422166735,1778643038000,-500.0,0.00018531,2]
[422166736,1778643038000,-500.0,0.00018531,2]
[422166738,1778643038000,-500.0,0.00018531,2]
[422166737,1778643038000,-500.0,0.00018531,2]
[422166739,1778643038000,-500.0,0.00018531,2]
[422166740,1778643038000,-500.0,0.00018531,2]
[422166741,1778643038000,-500.0,0.00018531,2]
[422166744,1778643038000,-500.0,0.00018531,2]
[422166773,1778643038000,-4892.44,0.00020548,2]
[422166789,1778643038000,-4892.44,0.00020548,2]
[422166775,1778643038000,-4892.44,0.00020548,2]
[422166815,1778643038000,-174.019278,0.00022045,14]
[422166817,1778643038000,-2258.0,0.00022119,2]
[422166828,1778643038000,-717.56824242,0.00022407,2]
[422166826,1778643038000,-231.82,0.00022403,2]
[422166829,1778643038000,-717.5682424,0.00022407,2]
[422166831,1778643038000,-200.0,0.00022429,2]
[422166830,1778643038000,-717.5682424,0.00022407,2]
[422166832,1778643038000,-2076.65,0.00022466,2]
[422166834,1778643038000,-500.0,0.00022494,2]
[422166833,1778643038000,-7034.0,0.00022483,2]
[422166837,1778643038000,-500.0,0.00022494,2]
[422166838,1778643038000,-1226.944,0.00022495,2]
[422166835,1778643038000,-505.50097699,0.00022494,2]
[422166840,1778643038000,-1358.571,0.00022495,2]
[422166839,1778643038000,-625.0,0.00022495,2]
[422166841,1778643038000,-726.27589737,0.00022597,2]
[422166843,1778643038000,-165.9,0.00022821,2]
[422166842,1778643038000,-302.0,0.00022755,2]
[422166844,1778643038000,-177.5,0.00022891,2]
[422166845,1778643038000,-1760.77,0.00022908,2]
[422166847,1778643038000,-578.0,0.00023,2]
[422166849,1778643038000,-406.0,0.00023,2]
[422166846,1778643038000,-2000.0,0.00022918,2]
[422166848,1778643038000,-11377.62,0.00023,2]
[422166771,1778643038000,-4892.44,0.00020548,2]
[422166824,1778643038000,-1568.25291956,0.00022356,2]
[422166821,1778643038000,-1760.77,0.00022349,2]
[422166836,1778643038000,-162.05932772,0.00022494,2]
[422166809,1778643038000,-510.42492008,0.00022042,2]
[422166819,1778643038000,-167.810085,0.00022156,14]
[422166781,1778643038000,-4892.44,0.00020548,2]
[422166785,1778643038000,-4892.44,0.00020548,2]
[422166783,1778643038000,-4892.44,0.00020548,2]
[422166787,1778643038000,-4892.44,0.00020548,2]